fUST/lending_fUST_20250614
["ID","MTS","AMOUNT","RATE_DAILY","PERIOD"]
[365764948,1749891044262,-160.0,0.00023296,3]
[365764949,1749891044272,-845.10789306,0.00023296,3]
[365764950,1749891044281,-12533.30537164,0.00023296,3]
[365764951,1749891044290,-424.40141186,0.00023296,3]
[365764952,1749891044300,-6000.0,0.00023347,4]
[365764953,1749891044310,-10000.0,0.00023396,4]
[365764954,1749891044319,-487.52082321,0.000234,2]
[365764955,1749891044329,-6000.0,0.00023448,3]
[365764956,1749891044339,-215.0738,0.00023457,2]
[365764957,1749891044350,-3046.18,0.00023501,2]
[365764958,1749891044359,-170.8281007,0.00023534,2]
[365764959,1749891044369,-942.03,0.00023561,4]
[365764960,1749891044378,-754.64,0.00023561,4]
[365764961,1749891044388,-460.0,0.00023561,4]
[365764962,1749891044401,-599.4,0.00023561,4]
[365764963,1749891044410,-732.15,0.00023561,4]
[365764964,1749891044419,-460.0,0.00023561,4]
[365764965,1749891044429,-756.42,0.00023561,4]
[365764966,1749891044439,-2418.5,0.00023561,4]
[365764967,1749891044448,-460.0,0.00023561,4]
[365764968,1749891044457,-627.98,0.00023561,4]
[365764969,1749891044467,-460.0,0.00023561,4]
[365764970,1749891044476,-883.75,0.00023561,4]
[365764971,1749891044486,-460.0,0.00023561,4]
[365764972,1749891044495,-618.41,0.00023561,4]
[365764973,1749891044505,-460.0,0.00023561,4]
[365764974,1749891044514,-873.83,0.00023561,4]
[365764975,1749891044524,-1063.24869493,0.00023631,2]
[365764976,1749891044533,-1769.85564837,0.00023747,2]
[365764977,1749891044546,-2023.41,0.000238,2]
[365764978,1749891044557,-1090.0,0.00023833,2]
[365764979,1749891044567,-942.03,0.00023835,4]
[365764980,1749891044576,-754.64,0.00023835,4]
[365764981,1749891044586,-460.0,0.00023835,4]
[365764982,1749891044595,-599.4,0.00023835,4]
[365764983,1749891044605,-732.15,0.00023835,4]
[365764984,1749891044615,-460.0,0.00023835,4]
[365764985,1749891044626,-756.42,0.00023835,4]
[365764986,1749891044637,-2418.5,0.00023835,4]
[365764987,1749891044646,-460.0,0.00023835,4]
[365764988,1749891044656,-627.98,0.00023835,4]
[365764989,1749891044666,-460.0,0.00023835,4]
[365764990,1749891044676,-883.75,0.00023835,4]
[365764991,1749891044686,-460.0,0.00023835,4]
[365764992,1749891044696,-618.41,0.00023835,4]
[365764993,1749891044705,-460.0,0.00023835,4]
[365764994,1749891044716,-873.83,0.00023835,4]
[365764995,1749891044726,-155817.81747355,0.0002387,2]
[365764996,1749891044735,-1260.0,0.00023874,12]
[365764997,1749891044745,-832.77,0.000239,7]
[365764998,1749891044755,-167.82525183,0.000239,2]
[365764999,1749891044765,-487.52082321,0.000239,2]
[365765000,1749891044774,-1090.0,0.00023936,2]
[365765001,1749891044784,-5000.0,0.0002394,2]
[365765002,1749891044794,-502.04104999,0.00023973,2]
[365765003,1749891044803,-501.06245016,0.00023973,2]
[365765004,1749891044812,-500.0,0.00023973,2]
[365765005,1749891044822,-500.0,0.00023973,2]
[365765006,1749891044831,-500.0,0.00023973,2]
[365765007,1749891044841,-574.97211964,0.00023973,2]
[365765008,1749891044850,-500.0,0.00023973,2]
[365765009,1749891044860,-500.0,0.00023973,2]
[365765010,1749891044869,-500.0,0.00023973,2]
[365765011,1749891044879,-500.0,0.00023973,2]
[365765012,1749891044888,-500.0,0.00023973,2]
[365765013,1749891044898,-500.0,0.00023973,2]
[365765014,1749891044907,-500.0,0.00023973,2]
[365765015,1749891044916,-331.18938228,0.00023973,2]
[365765016,1749891044925,-500.0,0.00023973,2]
[365765017,1749891044934,-500.0,0.00023973,2]
[365765018,1749891044943,-500.0,0.00023973,2]
[365765019,1749891044953,-500.0,0.00023973,2]
[365765020,1749891044962,-600.0,0.00023973,2]
[365765021,1749891044971,-500.79880931,0.00023973,2]
[365765022,1749891044981,-500.0,0.00023973,2]
[365765023,1749891044991,-500.0,0.00023973,2]
[365765024,1749891045000,-500.0,0.00023973,2]
[365765025,1749891045010,-500.0,0.00023973,2]
[365765026,1749891045019,-1090.0,0.00023985,2]
[365765027,1749891045029,-1663.98628389,0.00024,2]
[365765028,1749891045038,-107812.81591045,0.00024,2]
[365765036,1749891483812,177.80183966,0.0002,2]
[365765039,1749891628531,310.377847,0.00013699,2]
[365765040,1749891663825,2316.26,0.00024658,120]
[365765042,1749891951117,-310.377847,0.00020187,2]
[365765043,1749891951140,-345.5617896,0.00020725,2]
[365765044,1749891951161,-797.413007,0.00020927,2]
[365765045,1749891951183,-160.0,0.00021094,2]
[365765046,1749891951204,-283.77180286,0.00021095,4]
[365765047,1749892028139,-176.22819714,0.00021095,4]
[365765048,1749892028163,-151.30331622,0.00021528,2]
[365765049,1749892033110,-1338.30668378,0.00021528,2]
[365765050,1749892033131,-186.8951963,0.00021893,2]
[365765051,1749892033151,-514.89070958,0.000219,2]
[365765052,1749892044091,-1487.69,0.00021528,2]
[365765053,1749892044113,-165.96832579,0.000219,2]
[365765054,1749892044134,-300.0,0.00021915,2]
[365765055,1749892044157,-344.96,0.00021915,2]
[365765056,1749892044184,-160.84027915,0.00021917,2]
[365765057,1749892044218,-300.0,0.00021991,2]
[365765058,1749892044240,-300.0,0.00021991,2]
[365765059,1749892044261,-549.51,0.00021992,4]
[365765060,1749892044282,-214.54495475,0.00021992,4]
[365765061,1749892044302,-68.37463466,0.00021992,4]
[365765062,1749892051075,-1089.87089921,0.000219,6]
[365765063,1749892051098,-391.62536534,0.00021992,4]
[365765064,1749892051122,-394.46312778,0.00021992,4]
[365765068,1749892152099,-460.0,0.000213,4]
[365765069,1749892152121,-300.0,0.000213,2]
[365765070,1749892152142,-3637.18173791,0.00021301,2]
[365765072,1749892165112,-465.55,0.000213,4]
[365765073,1749892165133,-1582.02696836,0.00021301,2]
[365765118,1749892232519,-344.96,0.000213,4]
[365765119,1749892232571,-115.04,0.000213,4]
[365765120,1749892232580,-300.0,0.000213,2]
[365765121,1749892232590,-3473.83876691,0.00021301,2]
[365765145,1749892238374,-728.1996,0.00021301,2]
[365765146,1749892238426,-15478.75292682,0.00021301,2]
[365765147,1749892238435,-1451.72,0.00021536,2]
[365765148,1749892238445,-460.0,0.00021574,4]
[365765149,1749892238455,-465.55,0.00021574,4]
[365765150,1749892238465,-460.0,0.00021574,4]
[365765151,1749892238474,-460.0,0.00021848,4]
[365765152,1749892238483,-465.55,0.00021848,4]
[365765153,1749892238493,-460.0,0.00021848,4]
[365765154,1749892238502,-201.74158382,0.00021892,2]
[365765155,1749892238512,-1053.54186942,0.000219,6]
[365765156,1749892238522,-277.22,0.00021992,4]
[365765157,1749892238531,-209.08376477,0.00021992,4]
[365765158,1749892238541,-460.0,0.00021992,4]
[365765159,1749892238551,-599.01,0.00021992,4]
[365765160,1749892238560,-460.0,0.00021992,4]
[365765164,1749892238702,-460.0,0.00021992,4]
[365765165,1749892238712,-460.0,0.00021992,4]
[365765166,1749892238721,-460.0,0.00021992,4]
[365765167,1749892238730,-460.0,0.00021992,4]
[365765168,1749892238740,-460.0,0.00021992,4]
[365765169,1749892238749,-460.0,0.00021992,4]
[365765170,1749892238759,-1468.63,0.00021992,4]
[365765171,1749892238769,-460.0,0.00021992,4]
[365765172,1749892238778,-544.61,0.00021992,4]
[365765173,1749892238787,-460.0,0.00021992,4]
[365765174,1749892238796,-460.0,0.00021992,4]
[365765175,1749892238806,-460.0,0.00021992,4]
[365765176,1749892238818,-460.0,0.00021992,4]
[365765177,1749892238827,-575.28,0.00021992,4]
[365765178,1749892238837,-460.0,0.00021992,4]
[365765179,1749892238846,-460.0,0.00021992,4]
[365765180,1749892238856,-9236.96194196,0.00021992,2]
[365765181,1749892238866,-1131.7012002,0.00022,2]
[365765182,1749892238875,-168.0,0.00022,2]
[365765183,1749892238885,-1053.54186916,0.00022003,6]
[365765184,1749892238894,-835.41710878,0.00022035,2]
[365765185,1749892238904,-213.28201367,0.00022035,2]
[365765186,1749892238914,-424.40141186,0.00022035,2]
[365765187,1749892238923,-160.0,0.00022035,2]
[365765188,1749892238933,-160.0,0.00022035,2]
[365765189,1749892238942,-499.55052939,0.00022035,2]
[365765248,1749892246667,-36.39239037,0.00022035,2]
[365765250,1749892360609,189.43268926,0.000199,2]
[365765251,1749892360631,264.47333432,0.000199,2]
[365765253,1749892661900,302.60401572,0.00019892,2]
[365765258,1749892881796,500.0,0.00019553,2]
[365765259,1749892903094,4154.05364996,0.0002,2]
[365765260,1749892903119,845.94635004,0.0002,2]
[365765261,1749892910552,242.557753,0.00019848,2]
[365765262,1749892919466,4132.62689696,0.0002,2]
[365765263,1749892919488,867.37310304,0.0002,2]
[365765264,1749892935900,1594.77456486,0.0002,2]
[365765265,1749892963172,201.73601048,0.00019892,2]
[365765269,1749893136118,-221.62435964,0.00020361,2]
[365765270,1749893136140,-48.85264753,0.00020461,2]
[365765272,1749893229630,2089.16652917,0.0002,2]
[365765273,1749893232124,-564.6651542,0.00020151,2]
[365765274,1749893232146,-157.16236899,0.00020461,2]
[365765275,1749893232168,-1312.7736647,0.00020461,2]
[365765276,1749893232188,-236.5061816,0.00020561,2]
[365765277,1749893232209,-500.0,0.00020582,2]
[365765278,1749893232230,-413.26319,0.0002066,2]
[365765279,1749893232251,-225.15502369,0.0002066,2]
[365765280,1749893232273,-1124.03268397,0.000212,2]
[365765281,1749893232294,-298.0,0.00021285,2]
[365765282,1749893232315,-300.0,0.00021285,2]
[365765283,1749893232336,-2974.92343361,0.00021285,2]
[365765284,1749893232357,-1200.0,0.00021286,2]
[365765285,1749893232378,-300.0,0.00021286,2]
[365765286,1749893232398,-300.0,0.00021287,2]
[365765287,1749893232419,-300.0,0.00021287,2]
[365765288,1749893232440,-300.0,0.00021287,2]
[365765289,1749893232461,-264.06,0.00021287,10]
[365765290,1749893232481,-220.05,0.00021287,10]
[365765291,1749893232502,-160.84,0.00021289,2]
[365765292,1749893232523,-379.2,0.00021289,3]
[365765293,1749893232545,-189.6,0.00021289,3]
[365765294,1749893232566,-568.83,0.00021289,3]
[365765295,1749893232588,-500.0,0.00021294,2]
[365765296,1749893232609,-500.0,0.00021294,2]
[365765297,1749893232629,-364.72252226,0.00021294,2]
[365765298,1749893232649,-500.0,0.00021294,2]
[365765299,1749893232670,-651.99243922,0.00021294,2]
[365765300,1749893232689,-500.0,0.00021294,2]
[365765301,1749893232711,-500.0,0.00021294,2]
[365765302,1749893232734,-216.45015067,0.00021294,2]
[365765303,1749893232755,-500.0,0.00021294,2]
[365765304,1749893232777,-365.7864094,0.00021294,2]
[365765305,1749893232801,-500.0,0.00021294,2]
[365765306,1749893232823,-500.0,0.00021294,2]
[365765307,1749893232845,-500.0,0.00021294,2]
[365765308,1749893232867,-500.0,0.00021294,2]
[365765309,1749893232887,-235.99695644,0.00021294,2]
[365765310,1749893232907,-500.0,0.00021294,2]
[365765311,1749893232927,-467.48847649,0.00021294,2]
[365765312,1749893232948,-481.15277115,0.00021294,2]
[365765313,1749893232968,-500.0,0.00021294,2]
[365765314,1749893232991,-500.0,0.00021294,2]
[365765315,1749893233012,-500.0,0.00021294,2]
[365765316,1749893233033,-500.0,0.00021294,2]
[365765317,1749893233056,-500.0,0.00021294,2]
[365765318,1749893233078,-514.21665762,0.00021294,2]
[365765319,1749893233100,-500.0,0.00021294,2]
[365765320,1749893233121,-500.0,0.00021294,2]
[365765321,1749893233143,-243.40830046,0.00021294,2]
[365765322,1749893233165,-500.0,0.00021294,2]
[365765323,1749893233186,-500.0,0.00021294,2]
[365765324,1749893233219,-500.0,0.00021294,2]
[365765325,1749893233241,-500.0,0.00021294,2]
[365765326,1749893233264,-500.0,0.00021294,2]
[365765327,1749893233286,-500.0,0.00021294,2]
[365765328,1749893233308,-500.0,0.00021294,2]
[365765329,1749893233331,-500.0,0.00021294,2]
[365765330,1749893233352,-584.54607584,0.00021294,2]
[365765331,1749893233375,-500.0,0.00021294,2]
[365765332,1749893233397,-203.79137327,0.00021294,2]
[365765333,1749893248077,-199.370503,0.00020297,2]
[365765334,1749893248098,-2279.2064084,0.00021081,2]
[365765335,1749893248119,-152.81,0.00021287,10]
[365765336,1749893248140,-296.20862673,0.00021294,2]
[365765337,1749893248161,-500.0,0.00021294,2]
[365765338,1749893248183,-256.9911995,0.00021294,2]
[365765339,1749893252077,-243.0088005,0.00021294,2]
[365765340,1749893252099,-500.0,0.00021294,2]
[365765341,1749893252120,-500.0,0.00021294,2]
[365765342,1749893252141,-500.0,0.00021294,2]
[365765343,1749893252162,-500.0,0.00021294,2]
[365765344,1749893252183,-500.0,0.00021294,2]
[365765345,1749893252204,-500.0,0.00021294,2]
[365765346,1749893252225,-500.0,0.00021294,2]
[365765347,1749893252247,-253.86318118,0.00021294,2]
[365765348,1749893264527,254.48076418,0.00019194,2]
[365765350,1749893296715,213.60002827,0.0002,20]
[365765351,1749893316115,84750.54125785,0.00017,2]
[365765353,1749893324762,153.97926752,0.000168,2]
[365765358,1749893328362,395.458651,0.00013699,2]
[365765359,1749893346117,-249.26758894,0.00019999,2]
[365765360,1749893346140,-500.0,0.00019999,2]
[365765361,1749893346162,-318.42071215,0.00019999,2]
[365765362,1749893346185,-500.0,0.00019999,2]
[365765363,1749893346208,-500.0,0.00019999,2]
[365765364,1749893346231,-500.0,0.00019999,2]
[365765365,1749893346252,-500.0,0.00019999,2]
[365765366,1749893346273,-500.0,0.00019999,2]
[365765367,1749893346295,-500.0,0.00019999,2]
[365765368,1749893346318,-500.0,0.00019999,2]
[365765369,1749893346340,-500.0,0.00019999,2]
[365765370,1749893346361,-500.0,0.00019999,2]
[365765371,1749893346382,-500.0,0.00019999,2]
[365765372,1749893346403,-500.0,0.00019999,2]
[365765373,1749893346424,-500.0,0.00019999,2]
[365765374,1749893346446,-500.0,0.00019999,2]
[365765375,1749893346467,-500.0,0.00019999,2]
[365765376,1749893346489,-500.0,0.00019999,2]
[365765377,1749893346511,-500.0,0.00019999,2]
[365765378,1749893346532,-500.0,0.00019999,2]
[365765379,1749893346554,-500.0,0.00019999,2]
[365765380,1749893346576,-500.0,0.00019999,2]
[365765381,1749893346598,-500.0,0.00019999,2]
[365765382,1749893346620,-500.0,0.00019999,2]
[365765383,1749893346642,-500.0,0.00019999,2]
[365765384,1749893346663,-500.0,0.00019999,2]
[365765385,1749893346684,-500.0,0.00019999,2]
[365765386,1749893346705,-500.0,0.00019999,2]
[365765387,1749893346726,-500.0,0.00019999,2]
[365765388,1749893346746,-500.0,0.00019999,2]
[365765389,1749893346767,-500.0,0.00019999,2]
[365765390,1749893346788,-500.0,0.00019999,2]
[365765391,1749893346808,-211.59397517,0.00019999,2]
[365765392,1749893346832,-500.0,0.00019999,2]
[365765393,1749893346852,-500.0,0.00019999,2]
[365765394,1749893346874,-500.0,0.00019999,2]
[365765395,1749893346895,-500.0,0.00019999,2]
[365765396,1749893346919,-500.0,0.00019999,2]
[365765397,1749893346941,-500.0,0.00019999,2]
[365765398,1749893346963,-500.0,0.00019999,2]
[365765399,1749893346984,-500.0,0.00019999,2]
[365765400,1749893347006,-500.0,0.00019999,2]
[365765401,1749893347027,-500.0,0.00019999,2]
[365765402,1749893347048,-500.0,0.00019999,2]
[365765403,1749893347068,-500.0,0.00019999,2]
[365765404,1749893347088,-500.0,0.00019999,2]
[365765405,1749893347109,-488.55271018,0.00019999,2]
[365765409,1749893355123,-11.44728982,0.00019999,2]
[365765410,1749893355146,-500.0,0.00019999,2]
[365765411,1749893355168,-500.0,0.00019999,2]
[365765412,1749893355191,-650.0,0.00019999,2]
[365765413,1749893355213,-500.0,0.00019999,2]
[365765414,1749893355234,-500.0,0.00019999,2]
[365765415,1749893355256,-500.0,0.00019999,2]
[365765416,1749893355276,-500.0,0.00019999,2]
[365765417,1749893355298,-500.0,0.00019999,2]
[365765418,1749893355319,-500.0,0.00019999,2]
[365765419,1749893355340,-500.0,0.00019999,2]
[365765420,1749893355367,-500.0,0.00019999,2]
[365765421,1749893355390,-67014.23997173,0.0002,20]
[365765422,1749893355412,-395.458651,0.00020187,2]
[365765423,1749893355434,-330.38703169,0.00020196,2]
[365765424,1749893355457,-24900.0,0.00020296,2]
[365765449,1749893432740,-330.38703162,0.00020862,2]
[365765450,1749893432750,-951.13769293,0.00020987,2]
[365765451,1749893432759,-460.0,0.00021095,4]
[365765452,1749893432769,-4.17830359,0.00021095,4]
[365765459,1749893438596,-425.82169641,0.00021095,4]
[365765460,1749893438605,-460.0,0.00021095,4]
[365765461,1749893438614,-460.0,0.00021095,4]
[365765462,1749893438623,-440.0,0.00021095,4]
[365765463,1749893438632,-447.68596243,0.00021095,4]
[365765464,1749893438641,-440.0,0.00021095,4]
[365765465,1749893438651,-460.0,0.00021095,4]
[365765466,1749893438659,-540.79488643,0.00021095,4]
[365765467,1749893438668,-171.28892116,0.00021186,2]
[365765468,1749893438678,-171.28892115,0.00021191,2]
[365765470,1749893438687,-171.28892115,0.00021196,2]
[365765471,1749893438696,-899.22614716,0.00021199,2]
[365765472,1749893438706,-1383.53346364,0.00021284,2]
[365765473,1749893438716,-157.91,0.00021288,10]
[365765474,1749893438725,-300.0,0.00021292,2]
[365765475,1749893438734,-300.0,0.00021292,2]
[365765476,1749893438743,-300.0,0.00021292,2]
[365765477,1749893438752,-1200.0,0.00021292,2]
[365765478,1749893438761,-460.0,0.00021293,4]
[365765479,1749893438771,-460.0,0.00021293,4]
[365765480,1749893438780,-460.0,0.00021293,4]
[365765481,1749893438789,-460.0,0.00021293,4]
[365765482,1749893438798,-460.0,0.00021293,4]
[365765483,1749893438807,-460.0,0.00021293,4]
[365765484,1749893438817,-460.0,0.00021293,4]
[365765485,1749893438826,-460.0,0.00021293,4]
[365765486,1749893438835,-460.0,0.00021293,4]
[365765487,1749893438845,-420.0,0.00021293,4]
[365765488,1749893438856,-1660.04,0.00021293,4]
[365765489,1749893438866,-460.0,0.00021293,4]
[365765490,1749893438875,-460.0,0.00021293,4]
[365765491,1749893438884,-460.0,0.00021293,4]
[365765492,1749893438894,-460.0,0.00021293,4]
[365765493,1749893438904,-460.0,0.00021293,4]
[365765494,1749893438913,-460.0,0.00021293,4]
[365765495,1749893438925,-460.0,0.00021293,4]
[365765496,1749893438934,-460.0,0.00021293,4]
[365765497,1749893438944,-460.0,0.00021293,4]
[365765498,1749893438953,-420.0,0.00021293,4]
[365765499,1749893438962,-460.0,0.00021293,4]
[365765500,1749893438972,-500.0,0.00021293,4]
[365765501,1749893438981,-500.0,0.00021293,4]
[365765502,1749893438990,-460.0,0.00021293,4]
[365765503,1749893439000,-604.53,0.00021293,4]
[365765504,1749893439010,-500.0,0.00021295,4]
[365765505,1749893439020,-500.0,0.00021295,2]
[365765506,1749893439029,-500.0,0.00021295,2]
[365765507,1749893439039,-500.0,0.00021295,2]
[365765508,1749893439048,-500.0,0.00021295,2]
[365765510,1749893439057,-500.0,0.00021295,2]
[365765511,1749893439066,-636.15939752,0.00021295,2]
[365765513,1749893439075,-420.0,0.00021296,4]
[365765515,1749893439084,-460.0,0.00021296,4]
[365765516,1749893439093,-460.0,0.00021296,4]
[365765517,1749893439103,-460.0,0.00021296,4]
[365765518,1749893439112,-460.0,0.00021296,4]
[365765519,1749893439122,-460.0,0.00021296,4]
[365765520,1749893439131,-460.0,0.00021296,4]
[365765521,1749893439140,-460.0,0.00021296,4]
[365765522,1749893439150,-460.0,0.00021296,4]
[365765523,1749893439160,-460.0,0.00021296,4]
[365765524,1749893439171,-460.0,0.00021296,4]
[365765525,1749893439181,-460.0,0.00021296,4]
[365765526,1749893439191,-460.0,0.00021296,4]
[365765527,1749893439200,-430.0,0.00021296,4]
[365765528,1749893439209,-460.0,0.00021296,4]
[365765529,1749893439218,-460.0,0.00021296,4]
[365765530,1749893439227,-430.0,0.00021296,4]
[365765531,1749893439237,-460.0,0.00021296,4]
[365765532,1749893439247,-460.0,0.00021296,4]
[365765533,1749893439256,-460.0,0.00021296,4]
[365765534,1749893439277,-440.0,0.00021296,4]
[365765535,1749893439287,-460.0,0.00021296,4]
[365765536,1749893439297,-460.0,0.00021296,4]
[365765537,1749893439307,-460.0,0.00021296,4]
[365765538,1749893439318,-460.0,0.00021296,4]
[365765539,1749893439328,-460.0,0.00021296,4]
[365765540,1749893439338,-460.0,0.00021296,4]
[365765541,1749893439348,-460.0,0.00021296,4]
[365765542,1749893439358,-460.0,0.00021296,4]
[365765543,1749893439368,-460.0,0.00021296,4]
[365765544,1749893439378,-460.0,0.00021296,4]
[365765545,1749893439390,-440.0,0.00021296,4]
[365765546,1749893439400,-460.0,0.00021296,4]
[365765547,1749893439410,-460.0,0.00021296,4]
[365765548,1749893439420,-460.0,0.00021296,4]
[365765549,1749893439430,-460.0,0.00021296,4]
[365765550,1749893439440,-460.0,0.00021296,4]
[365765551,1749893439450,-460.0,0.00021296,4]
[365765552,1749893439460,-460.0,0.00021296,4]
[365765553,1749893439470,-460.0,0.00021296,4]
[365765554,1749893439480,-460.0,0.00021296,4]
[365765555,1749893439490,-460.0,0.00021296,4]
[365765556,1749893439500,-460.0,0.00021296,4]
[365765557,1749893439510,-348.70646529,0.00021296,4]
[365765558,1749893439520,-460.0,0.00021296,4]
[365765559,1749893439530,-869.06,0.00021296,4]
[365765560,1749893439540,-460.0,0.00021296,4]
[365765561,1749893439549,-460.0,0.00021296,4]
[365765562,1749893439559,-460.0,0.00021296,4]
[365765563,1749893439568,-460.0,0.00021296,4]
[365765564,1749893439578,-460.0,0.00021296,4]
[365765565,1749893439588,-460.0,0.00021296,4]
[365765566,1749893439598,-500.0,0.00021296,4]
[365765567,1749893439608,-500.0,0.00021296,4]
[365765568,1749893439618,-460.70442705,0.00021296,4]
[365765569,1749893439628,-430.0,0.00021296,4]
[365765570,1749893439638,-460.0,0.00021296,4]
[365765571,1749893439648,-500.0,0.00021297,4]
[365765572,1749893439658,-500.0,0.00021297,4]
[365765573,1749893439668,-500.0,0.00021297,4]
[365765574,1749893439678,-315.12276087,0.00021297,2]
[365765575,1749893439687,-772.516588,0.00021297,2]
[365765576,1749893439698,-157.9651217,0.00021297,2]
[365765577,1749893439707,-772.516588,0.00021297,2]
[365765578,1749893439717,-772.516588,0.00021297,2]
[365765579,1749893439726,-772.516588,0.00021297,2]
[365765580,1749893439736,-772.516588,0.00021297,2]
[365765581,1749893439746,-772.516588,0.00021297,2]
[365765582,1749893439756,-772.516588,0.00021297,2]
[365765583,1749893439766,-772.516588,0.00021297,2]
[365765584,1749893439775,-772.516588,0.00021297,2]
[365765585,1749893439784,-772.516588,0.00021297,2]
[365765586,1749893439794,-772.516588,0.00021297,2]
[365765587,1749893439803,-772.516588,0.00021297,2]
[365765588,1749893439812,-772.516588,0.00021297,2]
[365765589,1749893439822,-772.516588,0.00021297,2]
[365765590,1749893439831,-772.516588,0.00021297,2]
[365765591,1749893439841,-772.516588,0.00021297,2]
[365765592,1749893439854,-772.516588,0.00021297,2]
[365765593,1749893439863,-772.516588,0.00021297,2]
[365765594,1749893439873,-772.516588,0.00021297,2]
[365765595,1749893439882,-11627.22620928,0.00021298,2]
[365765596,1749893439893,-17541.73379161,0.00021298,2]
[365765597,1749893439903,-440.0,0.00021298,4]
[365765598,1749893439912,-324.53541914,0.00021298,4]
[365765599,1749893439923,-558.16503635,0.00021298,4]
[365765600,1749893439933,-440.0,0.00021298,4]
[365765601,1749893439943,-460.0,0.00021298,4]
[365765602,1749893439952,-430.0,0.00021298,4]
[365765603,1749893439962,-460.0,0.00021298,4]
[365765604,1749893439971,-460.0,0.00021298,4]
[365765605,1749893439980,-755.78,0.00021298,4]
[365765606,1749893439990,-400.0,0.00021298,4]
[365765607,1749893439999,-460.0,0.00021298,4]
[365765608,1749893440009,-430.0,0.00021298,4]
[365765609,1749893440019,-460.0,0.00021298,4]
[365765610,1749893440029,-460.0,0.00021298,4]
[365765611,1749893440038,-460.0,0.00021298,4]
[365765612,1749893440047,-460.0,0.00021298,4]
[365765613,1749893440057,-460.0,0.00021298,4]
[365765614,1749893440066,-374.69304928,0.00021298,4]
[365765615,1749893440075,-460.0,0.00021298,4]
[365765616,1749893440085,-500.0,0.00021298,4]
[365765617,1749893440094,-500.0,0.00021298,4]
[365765618,1749893440104,-434.00490752,0.00021298,4]
[365765619,1749893440113,-460.0,0.00021298,4]
[365765620,1749893440123,-460.0,0.00021298,4]
[365765621,1749893440132,-460.0,0.00021298,4]
[365765622,1749893440142,-460.0,0.00021298,4]
[365765623,1749893440152,-460.0,0.00021298,4]
[365765624,1749893440162,-460.0,0.00021298,4]
[365765625,1749893440173,-454.35536951,0.00021298,4]
[365765626,1749893440183,-460.0,0.00021298,4]
[365765627,1749893440193,-460.0,0.00021298,4]
[365765628,1749893440203,-460.0,0.00021298,4]
[365765629,1749893440213,-460.0,0.00021298,4]
[365765630,1749893440223,-460.0,0.00021298,4]
[365765631,1749893440233,-460.0,0.00021298,4]
[365765632,1749893440243,-460.0,0.00021298,4]
[365765633,1749893440252,-430.0,0.00021298,4]
[365765634,1749893440262,-460.0,0.00021298,4]
[365765635,1749893440273,-430.0,0.00021298,4]
[365765636,1749893440283,-460.0,0.00021298,4]
[365765637,1749893440293,-440.0,0.00021298,4]
[365765638,1749893440303,-460.0,0.00021298,4]
[365765640,1749893440312,-430.0,0.00021298,4]
[365765642,1749893440322,-416.81704989,0.00021298,4]
[365765644,1749893440335,-460.0,0.00021298,4]
[365765646,1749893440344,-460.0,0.00021298,4]